bitfinex/quotes_ETHUSD_20230105
["timestamp","ask_amount","ask_price","bid_price","bid_amount"]
[1672884198253,45.5781178,1255.3,1255.2,0.1105756]
[1672884200379,12.47397218,1255.3,1255.2,0.1105756]
[1672884200609,5.296,1255.3,1255.2,8.0774256]
[1672884200835,5.066,1255.3,1255.2,16.1102756]
[1672884201869,0.066,1255.3,1255.2,16.1102756]
[1672884202090,34.26967218,1255.4,1255.2,10.55926767]
[1672884202463,34.26967218,1255.4,1255.2,2.59241767]
[1672884202686,34.26967218,1255.4,1255.2,2.52641767]
[1672884202687,0.23,1255.3,1255.2,2.52641767]
[1672884204027,0.23,1255.3,1255.2,0.1105756]
[1672884215591,30.97967218,1255.4,1255.2,0.1105756]
[1672884216868,38.94538218,1255.4,1255.2,0.1105756]
[1672884217739,46.91109218,1255.4,1255.2,0.1105756]
[1672884219949,46.90746802,1255.4,1255.2,0.1105756]
[1672884221406,38.94175802,1255.4,1255.2,0.1105756]
[1672884224153,38.84175802,1255.4,1255.2,0.1105756]
[1672884225463,46.80733802,1255.4,1255.2,0.1105756]
[1672884226305,30.87604802,1255.4,1255.2,0.1105756]
[1672884237570,38.84180802,1255.4,1255.2,0.1105756]
[1672884238753,4.17797218,1255.3,1255.2,0.1105756]
[1672884249241,8.17797218,1255.3,1255.2,0.10830476]
[1672884249415,4.24397218,1255.3,1255.2,0.10830476]
[1672884249769,4.17797218,1255.3,1255.2,0.10830476]
[1672884251236,4.9390189,1255.3,1255.2,0.10830476]
[1672884251463,4.0,1255.3,1255.2,0.10830476]
[1672884251846,56.13255474,1255.4,1255.2,0.10830476]
[1672884252273,55.47155742,1255.4,1255.2,0.10830476]
[1672884253106,8.18415645,1255.3,1255.2,0.10830476]
[1672884253330,8.25015645,1255.3,1255.2,0.10830476]
[1672884254535,4.25015645,1255.3,1255.2,0.10830476]
[1672884254848,4.18415645,1255.3,1255.2,0.10830476]
[1672884261507,12.15037645,1255.3,1255.2,0.10830476]
[1672884261884,12.21637645,1255.3,1255.2,0.10830476]
[1672884262785,30.95829953,1255.3,1255.2,0.10830476]
[1672884263002,4.0,1255.2,1255.1,0.0809451]
[1672884263215,60.16462106,1255.2,1255.1,0.0809451]
[1672884263422,60.7108178,1255.2,1255.1,0.0809451]
[1672884263661,67.25293231,1255.2,1255.1,0.0809451]
[1672884264051,71.77273557,1255.2,1255.1,0.0809451]
[1672884264863,71.17483557,1255.2,1255.1,0.0809451]
[1672884266554,71.77273557,1255.2,1255.1,0.0809451]
[1672884266767,66.83006451,1255.2,1255.1,0.0809451]
[1672884267009,71.77273557,1255.2,1255.1,0.0809451]
[1672884267166,66.82629777,1255.2,1255.1,0.0809451]
[1672884267377,71.00378565,1255.2,1255.1,0.0809451]
[1672884267796,66.82629777,1255.2,1255.1,0.0809451]
[1672884268447,71.76896883,1255.2,1255.1,0.0809451]
[1672884269646,4.0,1255.1,1255.0,0.05713621]
[1672884269856,4.0,1255.1,1254.8,0.14114289]
[1672884269857,23.90436,1255.0,1254.8,0.14114289]
[1672884270021,33.80642951,1254.9,1254.8,0.14114289]
[1672884270242,34.10242951,1254.9,1254.8,0.14114289]
[1672884270689,34.58262625,1254.9,1254.8,0.14114289]
[1672884270922,39.84907067,1254.9,1254.8,0.14114289]
[1672884271490,42.84907067,1254.9,1254.8,0.14114289]
[1672884272786,47.84907067,1254.9,1254.8,0.14114289]
[1672884279012,42.84907067,1254.9,1254.8,0.14114289]
[1672884279825,47.84907067,1254.9,1254.8,0.14114289]
[1672884281002,48.44707067,1254.9,1254.8,0.14114289]
[1672884288841,43.44707067,1254.9,1254.8,0.14114289]
[1672884290016,48.44707067,1254.9,1254.8,0.14114289]
[1672884290265,24.54079067,1254.9,1254.8,0.14114289]
[1672884290460,48.44707067,1254.9,1254.8,0.14114289]
[1672884291461,48.44707067,1254.9,1254.8,0.13888629]
[1672884292399,53.22807067,1254.9,1254.8,0.13888629]
[1672884292617,57.40438859,1254.9,1254.8,0.13888629]
[1672884292823,53.22807067,1254.9,1254.8,0.13888629]
[1672884293057,57.39430683,1254.9,1254.8,0.13888629]
[1672884293830,28.70702683,1254.9,1254.8,0.13888629]
[1672884293975,36.67578683,1254.9,1254.8,0.13888629]
[1672884294190,44.64454683,1254.9,1254.8,0.13888629]
[1672884294419,52.61330683,1254.9,1254.8,0.13888629]
[1672884295068,44.64454683,1254.9,1254.8,0.13888629]
[1672884295305,52.61330683,1254.9,1254.8,0.13888629]
[1672884298302,44.64454683,1254.9,1254.8,0.13888629]
[1672884299207,52.61330683,1254.9,1254.8,0.13888629]
[1672884299339,52.01530683,1254.9,1254.8,0.13888629]
[1672884300722,47.01530683,1254.9,1254.8,0.13888629]
[1672884300934,42.84907067,1254.9,1254.8,0.13888629]
[1672884301140,47.79174173,1254.9,1254.8,0.13888629]
[1672884301784,52.79174173,1254.9,1254.8,0.13888629]
[1672884304504,52.79174173,1254.9,1254.7,0.87860318]
[1672884304732,46.21370581,1254.8,1254.7,0.87860318]
[1672884304944,53.19648361,1254.8,1254.7,0.87860318]
[1672884305578,49.19648361,1254.8,1254.7,0.87860318]
[1672884305770,41.22709361,1254.8,1254.7,0.87860318]
[1672884306200,39.31609361,1254.8,1254.7,0.87860318]
[1672884306420,47.28548361,1254.8,1254.7,0.87860318]
[1672884308555,39.31609361,1254.8,1254.7,0.87860318]
[1672884308806,47.28548361,1254.8,1254.7,0.87860318]
[1672884308970,20.4407763,1254.8,1254.7,0.87860318]
[1672884309746,36.3795563,1254.8,1254.7,0.87860318]
[1672884309879,28.4101663,1254.8,1254.7,0.87860318]
[1672884311994,24.23478,1254.8,1254.7,0.87860318]
[1672884312245,29.17745106,1254.8,1254.7,0.87860318]
[1672884312421,24.23478,1254.8,1254.7,0.87860318]
[1672884312659,40.82108401,1254.8,1254.7,0.87860318]
[1672884312938,35.82108401,1254.8,1254.7,0.87860318]
[1672884313166,39.81023352,1254.8,1254.7,0.87860318]
[1672884313397,44.81023352,1254.8,1254.7,0.87860318]
[1672884313812,20.67206352,1254.8,1254.7,0.87860318]
[1672884313995,12.24612174,1254.8,1254.7,0.87860318]
[1672884314353,7.24612174,1254.8,1254.7,0.87860318]
[1672884314979,31.15429174,1254.8,1254.7,0.87860318]
[1672884315377,23.41490174,1254.8,1254.7,0.87860318]
[1672884316038,15.44551174,1254.8,1254.7,0.87860318]
[1672884316234,23.41490174,1254.8,1254.7,0.87860318]
[1672884316421,23.41463165,1254.8,1254.7,0.87860318]
[1672884316786,19.23478,1254.8,1254.7,0.87860318]
[1672884317302,27.20417,1254.8,1254.7,0.87860318]
[1672884318200,31.21574511,1254.8,1254.7,0.87860318]
[1672884318637,36.15841617,1254.8,1254.7,0.87860318]
[1672884319640,41.15356966,1254.8,1254.7,0.87860318]
[1672884320297,48.04256665,1254.8,1254.7,0.87860318]
[1672884320509,45.09719136,1254.8,1254.6,0.1524153]
[1672884320727,45.09719136,1254.8,1254.5,0.15568127]
[1672884320728,21.63903542,1254.7,1254.5,0.15568127]
[1672884320962,42.71973304,1254.6,1254.5,0.15568127]
[1672884321170,59.73872978,1254.6,1254.5,0.15568127]
[1672884321547,59.73872978,1254.6,1254.2,5.35337632]
[1672884321916,7.97257,1254.3,1254.2,5.35337632]
[1672884322241,7.97257,1254.3,1254.2,0.23407632]
[1672884322242,27.21371,1254.3,1254.2,0.23407632]
[1672884322451,27.21371,1254.3,1254.2,0.16807632]
[1672884323333,37.53017209,1254.3,1254.2,0.16807632]
[1672884323680,46.48651046,1254.3,1254.2,0.16807632]
[1672884323893,47.08481046,1254.3,1254.2,0.16807632]
[1672884324217,52.08481046,1254.3,1254.2,0.16807632]
[1672884325859,52.84641562,1254.3,1254.2,0.16807632]
[1672884326233,52.07444642,1254.3,1254.2,0.16807632]
[1672884328436,32.70063,1254.2,1254.1,0.17934982]
[1672884328590,59.0582982,1254.2,1254.1,0.17934982]
[1672884328802,59.53849494,1254.2,1254.1,0.17934982]
[1672884329443,71.30950153,1254.2,1254.1,0.17934982]
[1672884329655,73.22050153,1254.2,1254.1,9.82e-06]
[1672884329887,31.89916,1254.0,1253.6,9.37349113]
[1672884330062,31.903,1253.8,1253.6,0.30119113]
[1672884330271,35.95814951,1253.8,1253.6,0.23519113]
[1672884330491,16.18276,1253.7,1253.6,0.23519113]
[1672884330690,23.24876,1253.7,1253.6,0.23519113]
[1672884330901,19.24876,1253.7,1253.6,0.23519113]
[1672884332962,27.22514,1253.7,1253.6,0.23519113]
[1672884333111,11.27238,1253.7,1253.6,0.23519113]
[1672884333479,16.27238,1253.7,1253.6,0.23519113]
[1672884333835,8.296,1253.7,1253.6,0.23519113]
[1672884334893,8.296,1253.7,1253.6,16.18923113]
[1672884335156,3.296,1253.7,1253.6,16.25523113]
[1672884335373,3.23,1253.7,1253.6,16.25523113]
[1672884335622,0.23,1253.7,1253.6,16.25523113]
[1672884335741,3.23,1253.7,1253.6,16.25523113]
[1672884335947,3.23,1253.7,1253.6,24.23225113]
[1672884335948,0.23,1253.7,1253.6,24.23225113]
[1672884336156,0.23,1253.7,1253.6,16.25523113]
[1672884337520,0.066,1253.9,1253.6,27.45319724]
[1672884337730,11.3541,1254.1,1253.6,27.45319724]
[1672884337986,15.34324951,1254.1,1253.6,27.45319724]
[1672884338317,23.31715951,1254.1,1253.6,27.45319724]
[1672884338990,15.34324951,1254.1,1253.6,27.45319724]
[1672884340117,8.03994,1254.1,1253.6,27.45319724]
[1672884340330,8.03994,1254.1,1253.6,3.52213724]
[1672884340331,7.97522,1253.9,1253.6,3.52213724]
[1672884340550,16.01644,1253.9,1253.6,3.45613724]
[1672884340692,16.01644,1253.9,1253.6,3.93013724]
[1672884340906,0.066,1253.9,1253.6,19.88396724]
[1672884341149,11.04055,1254.0,1253.6,19.94996724]
[1672884341586,19.01551,1254.0,1253.6,19.94996724]
[1672884342639,0.23,1253.9,1253.6,19.94996724]
[1672884343803,0.23,1253.9,1253.6,27.92698724]
[1672884344226,0.066,1254.1,1253.6,27.92698724]
[1672884344227,11.03985,1254.1,1253.6,27.92698724]
[1672884344536,0.23,1254.0,1253.6,27.92698724]
[1672884346752,8.20453,1254.0,1253.6,27.92698724]
[1672884346975,8.27053,1254.0,1253.6,27.92698724]
[1672884347160,0.296,1254.0,1253.6,27.92698724]
[1672884347500,0.23,1254.0,1253.6,27.92698724]
[1672884348275,8.20468,1254.0,1253.6,27.92698724]
[1672884348484,8.27068,1254.0,1253.6,27.92698724]
[1672884349056,0.296,1254.0,1253.6,27.92698724]
[1672884349270,0.23,1254.0,1253.6,27.92698724]
[1672884349417,8.20458,1254.0,1253.6,27.92698724]
[1672884349634,0.296,1254.0,1253.6,27.92698724]
[1672884349842,0.23,1254.0,1253.6,27.92698724]
[1672884352023,8.2046,1254.0,1253.6,27.92698724]
[1672884352200,8.2046,1254.0,1253.6,0.30119113]
[1672884352201,26.941559,1254.0,1253.6,0.30119113]
[1672884352369,26.941559,1254.0,1253.6,0.23519113]
[1672884352696,18.966959,1254.0,1253.6,8.21213113]
[1672884352909,26.941559,1254.0,1253.6,7.22191824]
[1672884353122,26.941559,1254.0,1253.6,15.19892824]
[1672884353351,18.966959,1254.0,1253.6,23.17322272]
[1672884353542,14.992359,1254.0,1253.6,23.17322272]
[1672884353747,10.992359,1254.0,1253.6,23.17322272]
[1672884355043,18.966839,1254.0,1253.6,23.17322272]
[1672884355217,18.966839,1254.0,1253.6,7.21919272]
[1672884355218,26.941319,1254.0,1253.6,7.21919272]
[1672884355437,26.941319,1254.0,1253.6,15.19600272]
[1672884355438,18.966839,1254.0,1253.6,15.19600272]
[1672884355649,26.941319,1254.0,1253.6,15.19600272]
[1672884356595,18.966839,1254.0,1253.6,23.17302272]
[1672884356804,10.992359,1254.0,1253.6,31.15004272]
[1672884357995,0.296,1254.0,1253.6,31.15004272]
[1672884358285,0.23,1254.0,1253.6,31.15004272]
[1672884361394,10.9316,1254.0,1253.6,31.15004272]
[1672884361738,10.9976,1254.0,1253.6,31.15004272]
[1672884364243,10.9976,1254.0,1253.6,35.13919223]
[1672884364421,10.9976,1254.0,1253.6,35.61938897]
[1672884364608,10.9976,1254.0,1253.7,4.0]
[1672884364824,10.9976,1254.0,1253.8,23.92725]
[1672884365090,10.9976,1254.0,1253.8,23.99325]
[1672884365448,10.99500903,1254.0,1253.8,23.99325]
[1672884367689,10.99500903,1254.0,1253.8,16.0175]
[1672884368065,10.99500903,1254.0,1253.8,0.066]
[1672884368186,10.99500903,1254.0,1253.7,12.0040689]
[1672884368581,10.99500903,1254.0,1253.7,19.9801989]
[1672884369342,10.99500903,1254.0,1253.7,27.9565789]
[1672884370291,10.7676,1254.0,1253.7,27.9565789]
[1672884373460,0.066,1254.0,1253.7,32.41972841]
[1672884373677,10.3248,1254.1,1253.7,32.89992515]
[1672884374001,0.066,1254.1,1253.8,7.98914951]
[1672884374177,15.77914275,1254.3,1253.8,7.98914951]
[1672884374178,10.70484971,1254.3,1253.9,35.88958951]
[1672884374387,10.70484971,1254.3,1253.9,36.90968625]
[1672884375176,10.70484971,1254.3,1254.0,2.5]
[1672884375396,14.86134275,1254.3,1254.1,7.97384]
[1672884375536,33.95694138,1254.3,1254.1,0.066]
[1672884375748,9.81249304,1254.2,1253.9,8.51501]
[1672884376065,5.87849304,1254.2,1253.9,8.51501]
[1672884376439,5.87849304,1254.2,1253.9,16.49012]
[1672884376440,1.722,1254.2,1253.9,16.49012]
[1672884376647,1.656,1254.2,1253.9,19.855345]
[1672884376970,0.23,1254.2,1253.9,11.880235]
[1672884377109,0.23,1254.2,1253.9,19.855345]
[1672884377327,4.38649304,1254.2,1253.9,19.855345]
[1672884378537,4.38649304,1254.2,1253.9,11.880235]
[1672884379061,4.38649304,1254.2,1253.9,8.51501]
[1672884379301,4.38649304,1254.2,1253.9,8.04111]
[1672884379847,8.38649304,1254.2,1253.9,0.066]
[1672884380082,4.15649304,1254.1,1253.8,5.2525]
[1672884380301,22.21462304,1254.1,1253.8,0.066]
[1672884380514,0.23,1254.0,1253.8,7.9756]
[1672884380685,0.23,1254.0,1253.8,8.0416]
[1672884381275,0.23,1254.0,1253.8,16.01735]
[1672884381817,0.23,1254.0,1253.8,8.0416]
[1672884382804,10.15,1254.1,1253.8,12.0416]
[1672884383015,10.15,1254.1,1253.8,34.048677]
[1672884383501,10.15,1254.1,1253.8,38.03782651]
[1672884383924,0.066,1254.1,1253.8,38.03782651]
[1672884384094,25.68729304,1254.2,1253.8,34.03782651]
[1672884386713,10.5445,1254.2,1253.8,34.03782651]
[1672884386921,10.5445,1254.2,1253.9,4.0]
[1672884387187,10.5445,1254.2,1254.0,23.92344]
[1672884387343,10.5445,1254.2,1254.0,23.98944]
[1672884388695,10.5445,1254.2,1254.0,23.98573118]
[1672884389306,10.5445,1254.2,1254.0,23.98373118]
[1672884389523,10.5445,1254.2,1254.0,23.98573118]
[1672884390515,10.5445,1254.2,1254.0,27.68969337]
[1672884390883,10.5445,1254.2,1254.0,23.98573118]
[1672884394993,10.5445,1254.2,1254.0,16.01125118]
[1672884396988,10.5445,1254.2,1254.0,17.50065653]
[1672884399199,0.066,1254.2,1254.0,29.46428604]
[1672884399420,0.03354971,1254.3,1254.0,29.46428604]
[1672884399611,0.03354971,1254.3,1254.1,4.4733]
[1672884399802,0.03354971,1254.3,1254.2,23.91963]
[1672884400009,0.03354971,1254.3,1254.2,23.98563]
[1672884403243,0.03354971,1254.3,1254.2,16.01242]
[1672884403664,0.03354971,1254.3,1254.2,8.03921]
[1672884405048,0.03354971,1254.3,1254.2,16.01242]
[1672884405933,0.03354971,1254.3,1254.2,23.98563]
[1672884408514,0.03354971,1254.3,1254.2,16.01242]
[1672884409147,0.03354971,1254.3,1254.2,16.00972516]
[1672884410152,0.03554971,1254.3,1254.2,16.00772516]
[1672884410302,0.03354971,1254.3,1254.2,16.00972516]
[1672884412540,0.03354971,1254.3,1254.2,23.98293516]
[1672884412754,0.03354971,1254.3,1254.2,26.38124268]
[1672884412949,0.03354971,1254.3,1254.2,18.40803268]
[1672884413399,0.03354971,1254.3,1254.2,16.00972516]
[1672884413583,0.03354971,1254.3,1254.2,8.03651516]
[1672884415922,0.03354971,1254.3,1254.2,16.00972516]
[1672884416856,0.03354971,1254.3,1254.2,8.03651516]
[1672884417565,0.03354971,1254.3,1254.2,0.066]
[1672884417754,0.03354971,1254.3,1254.0,38.27975486]
[1672884421328,8.00624971,1254.3,1254.0,22.33107486]
[1672884421549,8.07224971,1254.3,1254.0,22.33107486]
[1672884421718,8.07224971,1254.3,1254.0,17.13217486]
[1672884422277,8.07224971,1254.3,1254.0,9.15795486]
[1672884422429,20.20144275,1254.3,1254.0,9.15795486]
[1672884422641,12.22874275,1254.3,1254.0,17.13230486]
[1672884422885,12.22867275,1254.3,1254.0,17.13230486]
[1672884423528,4.25604275,1254.3,1254.0,17.13230486]
[1672884423730,4.19004275,1254.3,1254.0,25.10678486]
[1672884424430,12.16266275,1254.3,1254.0,17.13230486]
[1672884424805,12.22866275,1254.3,1254.0,17.13230486]
[1672884425394,12.22866275,1254.3,1254.0,9.15795486]
[1672884425586,16.95048638,1254.3,1254.0,0.066]
[1672884425799,8.97758638,1254.3,1254.0,7.9742]
[1672884426002,4.25604275,1254.3,1254.0,8.0402]
[1672884426355,4.19004275,1254.3,1254.0,8.0402]
[1672884426740,4.19004275,1254.3,1254.0,23.98916]
[1672884426944,0.03354971,1254.3,1254.0,23.98916]
[1672884427220,0.26354971,1254.3,1254.0,23.98916]
[1672884427437,0.26354971,1254.3,1254.0,31.53414235]
[1672884427792,4.42004275,1254.3,1254.0,31.53414235]
[1672884428008,0.26354971,1254.3,1254.0,31.53414235]
[1672884428482,4.42004275,1254.3,1254.0,31.53414235]
[1672884429198,0.26354971,1254.3,1254.0,31.53414235]
[1672884429416,4.42004275,1254.3,1254.0,31.53414235]
[1672884429724,0.03354971,1254.3,1254.1,4.4733]
[1672884430062,0.03354971,1254.3,1254.1,12.25076265]
[1672884430230,0.03354971,1254.3,1254.1,12.31676265]
[1672884430641,4.19004275,1254.3,1254.1,12.31676265]
[1672884431215,4.19004275,1254.3,1254.1,12.3134027]
[1672884431592,4.19004275,1254.3,1254.1,0.066]
[1672884431810,4.19004275,1254.3,1254.0,20.47322951]
[1672884432005,4.15649304,1254.2,1254.0,20.47322951]
[1672884432442,4.25604275,1254.3,1254.0,20.47322951]
[1672884432689,4.19004275,1254.3,1254.0,28.44770951]
[1672884432860,4.19004275,1254.3,1254.0,20.47322951]
[1672884433874,6.79250035,1254.3,1254.0,24.45856]
[1672884434082,6.85850035,1254.3,1254.0,16.01468]
[1672884437844,4.25604275,1254.3,1254.0,27.98916]
[1672884438018,4.19004275,1254.3,1254.0,27.98916]
[1672884438714,0.03354971,1254.3,1254.0,31.97830951]
[1672884439021,0.03354971,1254.3,1254.2,23.91963]
[1672884439216,0.03015734,1254.3,1254.2,23.98563]
[1672884439423,0.03015734,1254.3,1254.2,27.62745395]
[1672884439915,0.03015734,1254.3,1254.2,11.68103395]
[1672884440121,0.03015734,1254.3,1254.2,0.066]
[1672884440337,0.03015734,1254.3,1254.1,0.4698]
[1672884440338,20.13179038,1254.3,1254.1,0.4698]
[1672884440544,28.40036038,1254.3,1254.0,0.5351]
[1672884440792,20.42779038,1254.3,1253.9,61.0029]
[1672884441127,20.42779038,1254.3,1253.9,33.394491]
[1672884441269,20.42779038,1254.3,1253.9,23.876991]
[1672884441486,20.42779038,1254.3,1253.9,7.926791]
[1672884441744,4.15649304,1254.2,1253.9,7.926791]
[1672884441910,12.12974304,1254.2,1253.9,7.926791]
[1672884442119,12.19574304,1254.2,1253.9,7.926791]
[1672884442430,12.19574304,1254.2,1253.9,15.901781]
[1672884443310,12.19574304,1254.2,1253.9,7.926791]
[1672884443937,20.16899304,1254.2,1253.9,7.926791]
[1672884444130,12.19574304,1254.2,1253.9,7.926791]
[1672884444356,12.19574304,1254.2,1253.9,15.901851]
[1672884446514,22.59904304,1254.2,1253.9,15.901851]
[1672884446638,14.62579304,1254.2,1253.9,23.876961]
[1672884446846,10.4693,1254.2,1253.9,31.852071]
[1672884447052,14.62579304,1254.2,1253.9,31.852071]
[1672884447313,10.4693,1254.2,1253.9,31.852071]
[1672884447482,10.4693,1254.2,1253.9,23.876961]
[1672884448841,10.4693,1254.2,1253.9,35.84122051]
[1672884453304,10.4693,1254.2,1253.9,35.85570488]
[1672884460990,10.4693,1254.2,1253.9,35.85370488]
[1672884461159,10.4693,1254.2,1253.9,36.33590162]
[1672884461620,10.4693,1254.2,1254.1,23.92152]
[1672884461954,10.4693,1254.2,1254.1,23.98752]
[1672884462526,10.4693,1254.2,1254.1,23.98497386]
[1672884463531,10.4693,1254.2,1254.1,31.57005376]
[1672884463532,0.066,1254.2,1254.1,31.57005376]
[1672884463850,0.03015734,1254.3,1254.2,4.0]
[1672884464066,8.00272734,1254.3,1254.1,8.1251799]
[1672884464277,0.09615734,1254.3,1254.1,8.1251799]
[1672884464428,0.03015734,1254.3,1254.1,8.1251799]
[1672884464639,0.03015734,1254.3,1254.1,7.6510799]
[1672884465098,0.03015734,1254.3,1254.1,15.6248899]
[1672884466479,0.03015734,1254.3,1254.1,0.066]
[1672884466649,8.00283734,1254.3,1254.0,4.54]
[1672884466867,8.06883734,1254.3,1254.0,8.46314951]
[1672884467074,0.09615734,1254.3,1254.0,21.56572146]
[1672884467300,0.03015734,1254.3,1254.0,21.56572146]
[1672884467691,0.03015734,1254.3,1254.0,29.54020146]
[1672884469655,0.03015734,1254.3,1254.0,37.51468146]
[1672884470927,0.03015734,1254.3,1254.1,3.98914951]
[1672884471105,0.03015734,1254.3,1254.2,27.90877951]
[1672884471454,0.03015734,1254.3,1254.2,27.97477951]
[1672884472509,0.03015734,1254.3,1254.2,24.00156951]
[1672884472725,0.03015734,1254.3,1254.2,23.95156951]
[1672884476572,0.03015734,1254.3,1254.2,19.95156951]
[1672884476772,0.03015734,1254.3,1254.2,13.62501441]
[1672884480796,0.03015734,1254.3,1254.2,5.65180441]
[1672884480945,0.03015734,1254.3,1254.2,13.62501441]
[1672884482670,0.03015734,1254.3,1254.2,13.57501441]
[1672884483244,0.03015734,1254.3,1254.2,29.52143441]
[1672884484090,0.03015734,1254.3,1254.2,21.54822441]
[1672884487157,0.03015734,1254.3,1254.2,5.60180441]
[1672884487360,0.03015734,1254.3,1254.2,3.90514951]
[1672884487608,0.03015734,1254.3,1254.2,7.83914951]
[1672884487942,0.03015734,1254.3,1254.2,23.85156951]
[1672884488257,0.03015734,1254.3,1254.2,19.85156951]
[1672884491777,0.03015734,1254.3,1254.2,11.87835951]
[1672884493238,0.03015734,1254.3,1254.2,19.85156951]
[1672884493444,0.03015734,1254.3,1254.2,23.89038928]
[1672884494651,0.03215734,1254.3,1254.2,23.88838928]
[1672884494826,0.03015734,1254.3,1254.2,23.89038928]
[1672884495439,0.03015734,1254.3,1254.2,15.91717928]
[1672884495911,0.03015734,1254.3,1254.2,23.89038928]
[1672884496279,0.03015734,1254.3,1254.2,31.86359928]
[1672884497094,0.03015734,1254.3,1254.2,23.89038928]
[1672884497476,0.03015734,1254.3,1254.2,31.86359928]
[1672884497958,0.03015734,1254.3,1254.2,23.89038928]
[1672884498150,0.03015734,1254.3,1254.2,31.86359928]
[1672884498511,0.03015734,1254.3,1254.2,32.36669928]
[1672884498741,0.03015734,1254.3,1254.2,31.86359928]
[1672884499384,0.03015734,1254.3,1254.2,23.89038928]
[1672884501484,0.03015734,1254.3,1254.2,23.84038928]
[1672884502852,0.03015734,1254.3,1254.2,15.86717928]
[1672884503097,0.03015734,1254.3,1254.2,19.86717928]
[1672884503627,0.02798584,1254.3,1254.2,19.86717928]
[1672884506842,0.02798584,1254.3,1254.2,27.84038928]
[1672884507267,0.02798584,1254.3,1254.2,23.84038928]
[1672884507504,0.02798584,1254.3,1254.2,15.86717928]
[1672884508458,0.02798584,1254.3,1254.2,19.86717928]
[1672884508631,0.02798584,1254.3,1254.2,15.86717928]
[1672884509173,0.02798584,1254.3,1254.2,19.81717928]
[1672884509399,0.02798584,1254.3,1254.2,15.81717928]
[1672884510243,0.02798584,1254.3,1254.2,19.81717928]
[1672884510476,0.02798584,1254.3,1254.2,15.81717928]
[1672884513507,0.02798584,1254.3,1254.2,27.79038928]
[1672884513960,0.02798584,1254.3,1254.2,19.81717928]
[1672884514104,0.02798584,1254.3,1254.2,27.79038928]
[1672884514312,0.02798584,1254.3,1254.2,23.79038928]
[1672884514978,0.02798584,1254.3,1254.2,15.81717928]
[1672884515168,0.02798584,1254.3,1254.2,34.76359928]
[1672884518575,0.03354971,1254.5,1254.3,4.0]
[1672884518794,0.03354971,1254.5,1254.4,23.91579]
[1672884519109,0.03354971,1254.5,1254.4,23.98179]
[1672884522242,0.03354971,1254.5,1254.4,19.99900951]
[1672884522452,0.03554971,1254.5,1254.4,12.02507951]
[1672884522664,0.03354971,1254.5,1254.4,16.15847217]
[1672884522889,0.03354971,1254.5,1254.4,8.18654217]
[1672884523562,0.03354971,1254.5,1254.4,16.15847217]
[1672884525053,0.03354971,1254.5,1254.4,4.85547217]
[1672884525263,0.03354971,1254.5,1254.4,12.60027561]
[1672884525604,0.03354971,1254.5,1254.4,12.66627561]
[1672884525789,0.03354971,1254.5,1254.4,7.86680344]
[1672884526288,0.03354971,1254.5,1254.4,15.83873344]
[1672884531777,0.03354971,1254.5,1254.4,23.81066344]
[1672884533077,0.03354971,1254.5,1254.4,31.78259344]
[1672884540627,0.03354971,1254.5,1254.4,23.81066344]
[1672884540959,0.03354971,1254.5,1254.4,15.83873344]
[1672884541362,0.03354971,1254.5,1254.4,12.02707951]
[1672884542116,0.03354971,1254.5,1254.4,27.97093951]
[1672884546006,0.03354971,1254.5,1254.4,19.99900951]
[1672884546206,0.03354971,1254.5,1254.4,12.02707951]
[1672884547996,0.03354971,1254.5,1254.4,27.97093951]
[1672884548206,0.03354971,1254.5,1254.4,33.02490046]
[1672884548993,0.03354971,1254.5,1254.4,25.05297046]
[1672884549204,0.03354971,1254.5,1254.4,33.02490046]
[1672884549542,0.03354971,1254.5,1254.4,25.04995054]
[1672884550683,0.03354971,1254.5,1254.4,33.02188054]
[1672884550898,0.03354971,1254.5,1254.4,25.04995054]
[1672884554622,0.03354971,1254.5,1254.4,17.07802054]
[1672884557144,0.03354971,1254.5,1254.4,25.04995054]
[1672884559877,8.00354971,1254.5,1254.4,25.04995054]
[1672884560089,8.06954971,1254.5,1254.4,25.04995054]
[1672884562567,8.06954971,1254.5,1254.4,12.02405959]
[1672884562881,8.06954971,1254.5,1254.4,4.05212959]
[1672884563075,8.06954971,1254.5,1254.4,3.98612959]
[1672884570337,16.04084971,1254.5,1254.3,14.066]
[1672884570511,31.98344971,1254.5,1254.3,18.05514951]
[1672884570719,31.98344971,1254.5,1254.3,18.05198471]
[1672884570720,36.13994275,1254.5,1254.3,18.05198471]
[1672884570927,36.13994275,1254.5,1254.3,4.05514951]
[1672884571258,36.13994275,1254.5,1254.3,3.98914951]
[1672884573716,28.16864275,1254.5,1254.3,3.98914951]
[1672884575065,13.85305159,1254.5,1254.2,25.6644]
[1672884575293,13.85305159,1254.5,1254.3,10.97236]
[1672884575460,13.85305159,1254.5,1254.3,11.03836]
[1672884575907,9.69655855,1254.5,1254.3,11.03836]
[1672884576083,13.85305159,1254.5,1254.3,11.03836]
[1672884577082,13.85305159,1254.5,1254.3,8.03836]
[1672884577445,13.85305159,1254.5,1254.3,0.066]
[1672884577705,25.82449159,1254.5,1254.2,18.65354951]
[1672884577914,21.82449159,1254.5,1254.2,26.62668951]
[1672884579480,21.82449159,1254.5,1254.2,26.62468951]
[1672884579821,21.82449159,1254.5,1254.2,26.62668951]
[1672884580223,29.79579159,1254.5,1254.2,18.65354951]
[1672884580989,21.82435159,1254.5,1254.2,26.62669951]
[1672884582464,21.82435159,1254.5,1254.2,26.02829951]
[1672884582815,13.85305159,1254.5,1254.2,34.00150951]
[1672884584722,13.85305159,1254.5,1254.2,26.02829951]
[1672884584958,13.85305159,1254.5,1254.2,18.05514951]
[1672884585172,29.79585159,1254.5,1254.2,18.05514951]
[1672884585632,13.85305159,1254.5,1254.2,34.00121951]
[1672884586426,21.82439159,1254.5,1254.2,26.02800951]
[1672884588001,21.82439159,1254.5,1254.2,18.05514951]
[1672884590361,21.82439159,1254.5,1254.2,26.02824951]
[1672884592412,37.76703159,1254.5,1254.2,14.066]
[1672884593272,4.0,1254.4,1254.2,0.066]
[1672884593510,4.0,1254.4,1254.1,0.6644]
[1672884593511,21.98306,1254.4,1254.1,0.6644]
[1672884593723,22.04906,1254.4,1254.1,12.56117951]
[1672884593948,18.04906,1254.4,1254.1,12.62717951]
[1672884595407,18.04906,1254.4,1254.1,4.65354951]
[1672884595579,21.52522088,1254.4,1254.1,4.58754951]
[1672884596674,21.52522088,1254.4,1254.1,18.58754951]
[1672884596830,18.04906,1254.4,1254.1,26.62726951]
[1672884597313,10.0769,1254.4,1254.1,26.62726951]
[1672884597627,10.0769,1254.4,1254.1,26.62695951]
[1672884597837,26.02118,1254.4,1254.1,14.066]
[1672884598054,24.10802216,1254.4,1254.1,22.03964]
[1672884602784,10.0769,1254.4,1254.1,41.97646951]